bitfinex/quotes_ETHUSD_20250115
["timestamp","ask_amount","ask_price","bid_price","bid_amount"]
[1736955862673,3.870769,3343.2,3342.3,0.55]
[1736955862878,2.99137,3343.0,3342.3,0.55]
[1736955863869,5.99118,3343.2,3342.3,0.55]
[1736955864021,3.0,3343.2,3342.5,0.55]
[1736955864231,3.0,3343.3,3342.6,0.226]
[1736955864471,3.0,3343.5,3342.6,0.226]
[1736955864631,2.99112,3343.3,3342.6,0.226]
[1736955867629,3.7940747,3343.5,3342.6,0.226]
[1736955867882,2.99114,3343.3,3342.6,0.226]
[1736955868030,2.99117,3343.2,3342.6,0.226]
[1736955869428,3.0,3343.3,3342.8,0.8301]
[1736955869737,3.0,3343.3,3342.4,2.99183]
[1736955869738,3.0,3342.8,3342.2,0.8301]
[1736955870084,3.0,3342.6,3342.2,0.8301]
[1736955870425,2.99176,3342.6,3342.2,0.8301]
[1736955871154,3.0,3342.8,3342.1,3.91912842]
[1736955871331,5.71718996,3342.9,3342.1,3.91912842]
[1736955871528,2.99175,3342.6,3342.1,3.91912842]
[1736955871963,2.99179,3342.5,3342.1,3.91912842]
[1736955873579,2.99179,3342.5,3342.1,3.69312842]
[1736955873993,3.0,3342.8,3342.1,3.69312842]
[1736955874169,2.99168,3342.6,3342.1,3.69312842]
[1736955874352,3.0,3342.6,3342.1,3.69312842]
[1736955874700,2.99171,3342.6,3342.2,0.55]
[1736955874901,2.9918,3342.5,3342.1,3.69312842]
[1736955875596,3.97660842,3342.6,3342.1,3.69312842]
[1736955875893,3.0,3342.6,3342.1,3.69312842]
[1736955876106,5.99168,3342.6,3342.1,3.69312842]
[1736955876390,3.0,3342.6,3342.1,3.69312842]
[1736955876698,2.99195,3342.3,3342.1,3.69312842]
[1736955877990,3.0,3342.4,3342.1,3.69312842]
[1736955878680,2.99187,3342.4,3342.1,3.69312842]
[1736955879284,3.31257207,3342.4,3342.1,3.69312842]
[1736955879590,2.99196,3342.3,3342.1,3.69312842]
[1736955879780,2.99204,3342.2,3342.1,3.69312842]
[1736955880602,5.99204,3342.2,3342.1,3.69312842]
[1736955881714,6.74944,3342.2,3342.1,3.69312842]
[1736955881872,8.3007912,3342.2,3342.1,3.69312842]
[1736955883968,4.5513512,3342.2,3342.1,3.69312842]
[1736955884270,0.58812426,3342.6,3342.1,3.69312842]
[1736955884484,2.48061307,3342.7,3342.2,0.55]
[1736955884820,3.0,3342.7,3342.2,0.55]
[1736955884970,2.72577996,3342.8,3342.2,3.54202]
[1736955885168,2.72577996,3342.8,3342.2,0.55]
[1736955886187,3.0,3342.7,3342.2,0.55]
[1736955888399,3.0,3343.0,3342.2,0.55]
[1736955888603,4.05873513,3343.0,3342.2,0.55]
[1736955889289,7.05012513,3343.0,3342.2,0.55]
[1736955890603,3.05,3343.0,3342.2,0.55]
[1736955890814,3.05,3343.0,3342.4,0.55]
[1736955891218,0.05,3343.0,3342.4,0.55]
[1736955891702,0.05,3343.0,3342.9,4.33111]
[1736955892285,0.05,3343.0,3342.9,0.7897]
[1736955892710,0.05,3343.0,3342.5,0.225]
[1736955892913,3.0,3342.8,3342.2,0.7897]
[1736955893122,3.0,3342.5,3342.2,0.7897]
[1736955894028,3.0,3342.5,3342.3,0.55]
[1736955894231,5.72577996,3342.6,3342.2,0.7897]
[1736955894435,2.99144,3342.9,3342.2,0.7897]
[1736955894801,0.05,3343.0,3342.3,0.55]
[1736955895619,3.0,3342.8,3342.3,0.55]
[1736955896013,2.72577996,3342.9,3342.3,0.55]
[1736955896014,3.0,3342.9,3342.3,0.55]
[1736955896216,0.05,3343.0,3342.3,1.07578284]
[1736955896400,3.05,3343.0,3342.4,0.7897]
[1736955896604,6.04133,3343.0,3342.5,0.55]
[1736955896890,3.05,3343.0,3342.5,0.55]
[1736955897290,0.05,3343.0,3342.5,3.54177]
[1736955897597,0.05,3343.0,3342.5,0.55]
[1736955898106,0.05,3343.0,3342.5,3.54173]
[1736955898310,0.05,3343.0,3342.5,0.55]
[1736955900006,0.05,3343.0,3342.5,3.54173]
[1736955900202,0.05,3343.0,3342.5,0.55]
[1736955901331,0.05,3343.0,3342.7,0.55]
[1736955901644,2.72577996,3342.9,3342.4,0.7897]
[1736955901847,0.05,3343.0,3342.4,1.0147]
[1736955902248,0.05,3343.0,3342.5,0.55]
[1736955902420,3.0,3342.9,3342.5,0.55]
[1736955902835,0.05,3343.0,3342.5,0.55]
[1736955903148,0.05,3343.0,3342.6,0.225]
[1736955903321,0.05,3343.0,3342.9,0.55]
[1736955903519,0.05,3343.0,3342.9,1.3195]
[1736955904138,0.05,3343.0,3342.5,0.8095]
[1736955904306,0.05,3343.0,3342.1,3.69312842]
[1736955904502,0.38706,3342.9,3342.1,3.69312842]
[1736955904745,2.99167,3342.7,3342.1,3.69312842]
[1736955904934,2.99167,3342.7,3342.2,0.55]
[1736955905250,3.0,3342.7,3342.1,3.69312842]
[1736955905405,2.99173,3342.6,3342.1,3.69312842]
[1736955905608,2.99031341,3342.6,3342.1,3.69312842]
[1736955906026,3.0,3342.8,3342.2,0.55]
[1736955906239,2.99151,3342.8,3342.2,0.55]
[1736955906556,0.38706,3342.9,3342.2,0.55]
[1736955906760,0.05,3343.0,3342.6,0.55]
[1736955906927,0.05,3343.0,3342.5,0.55]
[1736955907124,0.05,3343.0,3342.7,1.3595]
[1736955908038,0.05,3343.0,3342.7,4.35108]
[1736955908229,0.05,3343.0,3342.7,6.14517096]
[1736955908563,0.05,3343.0,3342.7,1.3595]
[1736955908711,0.05,3343.0,3342.7,4.35107]
[1736955911124,0.05,3343.0,3342.9,0.55]
[1736955911540,0.05,3343.0,3342.8,0.55]
[1736955912261,0.05,3343.0,3341.5,5.99263]
[1736955912262,3.05,3343.0,3342.4,0.225]
[1736955912466,3.0,3342.8,3342.4,0.225]
[1736955912665,2.9915,3342.8,3342.2,0.8095]
[1736955912869,2.99171,3342.6,3342.3,0.225]
[1736955913048,3.0,3342.4,3341.7,0.8095]
[1736955913253,0.8206,3342.5,3341.9,0.225]
[1736955913565,3.651108,3342.9,3341.9,0.225]
[1736955913566,4.471678,3342.9,3342.2,0.8095]
[1736955913764,0.05,3343.0,3342.3,0.55]
[1736955914120,0.05,3343.0,3342.3,3.5419]
[1736955914339,0.05,3343.0,3342.3,0.55]
[1736955914539,0.05,3343.0,3342.5,0.55]
[1736955915537,0.05,3343.0,3342.5,3.54174]
[1736955915769,0.05,3343.0,3342.6,0.55]
[1736955916171,0.05,3343.0,3342.9,0.55]
[1736955916381,0.05,3343.0,3342.9,3.54141]
[1736955916728,0.05,3343.0,3342.9,0.55]
[1736955917572,0.05,3343.0,3342.9,0.775]
[1736955917761,0.05,3343.0,3342.9,0.93345]
[1736955920676,0.05,3343.0,3342.9,1.93345]
[1736955924786,2.99022,3344.3,3342.9,1.93345]
[1736955924787,0.58148501,3345.1,3343.5,0.7658]
[1736955924940,2.9894,3345.2,3344.3,0.55]
[1736955925139,3.74263056,3345.4,3344.3,0.55]
[1736955925140,3.74263056,3345.4,3344.5,0.55]
[1736955925451,2.98803,3346.7,3344.7,0.55]
[1736955925452,0.7846,3345.9,3344.7,0.55]
[1736955925673,0.7846,3346.4,3345.2,0.55]
[1736955925870,2.98878,3345.9,3345.2,0.55]
[1736955926241,2.72577996,3346.3,3345.2,0.55]
[1736955926451,2.9885,3346.2,3345.2,0.55]
[1736955926649,0.37731,3346.1,3345.2,0.55]
[1736955926901,0.7846,3346.4,3345.2,0.55]
[1736955927208,0.7846,3346.9,3345.1,2.55]
[1736955927365,0.7846,3346.9,3346.0,0.55]
[1736955927567,2.98782,3347.0,3346.2,0.55]
[1736955927810,0.7846,3347.3,3346.5,0.55]
[1736955927968,1.16179,3347.3,3346.2,0.55]
[1736955928302,3.77211,3347.3,3346.3,35.0]
[1736955928816,3.77211,3347.3,3346.1,3.21253]
[1736955928817,0.7846,3347.3,3346.2,0.55]
[1736955928974,3.77208,3347.3,3346.2,0.55]
[1736955929156,0.7846,3347.3,3346.2,0.55]
[1736955929357,3.77209,3347.3,3346.2,3.53841]
[1736955929592,3.377209,3347.2,3346.2,3.53841]
[1736955930174,3.377209,3347.2,3346.2,0.55]
[1736955930333,3.0,3346.9,3346.3,0.224]
[1736955930536,3.364789,3347.2,3346.4,0.55]
[1736955930824,0.377209,3347.2,3346.4,0.55]
[1736955931687,3.3364689,3347.1,3346.4,0.55]
[1736955931991,2.98785,3346.9,3346.4,0.55]
[1736955932184,3.3241389,3347.1,3346.4,0.55]
[1736955932485,0.3364689,3347.1,3346.4,0.55]
[1736955932900,2.98791,3346.9,3346.4,0.55]
[1736955933197,0.33243789,3346.8,3346.4,0.55]
[1736955935210,2.98791,3346.9,3346.4,0.55]
[1736955935634,3.3241389,3347.1,3346.4,0.55]
[1736955935948,3.0,3346.9,3346.4,0.55]
[1736955936148,2.98786,3346.9,3346.4,0.55]
[1736955936498,0.3364689,3347.1,3346.4,0.55]
[1736955936703,0.33364689,3347.0,3346.4,0.55]
[1736955936899,3.0,3346.9,3346.4,0.55]
[1736955937151,0.33364689,3347.0,3346.4,0.55]
[1736955937457,3.0,3346.4,3346.2,0.224]
[1736955937705,5.98837,3346.3,3346.2,0.224]
[1736955937844,2.98875,3345.9,3345.8,0.224]
[1736955938042,3.0,3346.0,3345.8,0.224]
[1736955938809,0.7722,3346.2,3345.8,0.55]
[1736955939013,0.7722,3346.2,3345.7,0.224]
[1736955939014,3.0,3345.8,3345.7,0.224]
[1736955939439,5.98882,3345.8,3345.7,0.224]
[1736955939655,6.587702,3345.8,3345.7,0.224]
[1736955940267,6.587702,3345.8,3345.7,0.774]
[1736955940467,3.598882,3345.8,3345.7,0.55]
[1736955941492,3.0,3345.8,3345.7,0.55]
[1736955941776,1.10584689,3347.0,3346.0,0.55]
[1736955942150,2.98784,3346.9,3346.0,0.55]
[1736955943185,1.10584689,3347.0,3346.0,0.55]
[1736955943186,2.98793,3346.8,3346.0,0.55]
[1736955943977,3.32142689,3347.0,3346.0,0.55]
[1736955944278,0.7722,3347.4,3346.4,0.55]
[1736955944573,3.0,3347.2,3346.4,0.55]
[1736955944734,3.7722,3347.4,3346.4,0.55]
[1736955944933,2.98782,3347.0,3346.5,35.0]
[1736955945159,2.98782,3347.0,3346.7,0.55]
[1736955945160,3.286602,3347.0,3346.7,0.55]
[1736955945344,3.286602,3347.0,3346.9,0.55]
[1736955945557,3.0,3346.6,3346.4,0.224]
[1736955945774,3.0,3346.6,3345.9,0.7544]
[1736955945974,3.0,3346.5,3345.8,1.0]
[1736955946145,3.0,3346.1,3345.8,1.0]
[1736955946349,10.26237875,3345.9,3345.8,1.0]
[1736955949904,3.0,3345.9,3345.8,1.55]
[1736955950064,5.98873,3345.9,3345.8,1.55]
[1736955950920,3.0,3345.9,3345.8,1.55]
[1736955951063,2.98855,3346.2,3345.8,1.55]
[1736955951064,2.98862,3346.1,3345.9,0.55]
[1736955951900,3.676038,3346.4,3345.9,0.55]
[1736955952208,10.29878875,3346.0,3345.9,1.0]
[1736955954266,5.98864,3346.0,3345.9,1.0]
[1736955955102,9.49008875,3346.0,3345.9,1.0]
[1736955959106,0.8087,3345.8,3345.0,0.224]
[1736955959306,5.989,3345.6,3345.0,0.224]
[1736955959469,2.98938,3345.2,3345.0,0.224]
[1736955959669,2.98935,3345.2,3345.1,0.55]
[1736955960066,2.98962,3344.9,3344.8,0.7813]
[1736955960302,3.0,3345.0,3344.0,0.7813]
[1736955960507,3.50144875,3344.2,3343.6,0.7813]
[1736955960819,3.0,3343.6,3343.4,0.224]
[1736955961037,2.99087,3343.5,3343.4,0.224]
[1736955961330,2.99109,3343.3,3342.9,2.7813]
[1736955961512,3.0,3343.5,3343.0,0.224]
[1736955961712,2.99094,3343.5,3343.0,0.224]
[1736955961900,3.0,3343.3,3343.1,0.55]
[1736955962093,3.50144875,3343.8,3343.0,0.224]
[1736955962336,2.99123,3343.1,3342.9,2.0]
[1736955962515,5.99132,3343.0,3342.9,1.776]
[1736955962822,5.99132,3343.0,3342.9,0.95693531]
[1736955963242,5.99132,3343.0,3342.9,5.08e-06]
[1736955963382,5.99204,3342.2,3341.7,0.224]
[1736955964636,3.0,3342.2,3341.7,0.224]
[1736955965502,2.99158,3342.8,3342.2,0.55]
[1736955965693,3.50144875,3343.0,3342.2,1.80561284]
[1736955966100,6.49257875,3343.3,3342.2,4.79763284]
[1736955966394,0.59998861,3343.5,3342.2,4.79763284]
[1736955966395,2.99096,3343.5,3342.2,1.80561284]
[1736955966622,3.50144875,3343.6,3342.8,0.55]
[1736955966836,6.49198875,3343.9,3343.0,0.55]
[1736955967037,3.50144875,3343.9,3343.0,1.059179]
[1736955967211,3.50144875,3343.9,3343.0,0.55]
[1736955967809,3.50144875,3343.9,3343.0,3.54127]
[1736955968338,3.50144875,3344.5,3343.0,0.55]
[1736955968542,3.50144875,3344.5,3343.1,0.55]
[1736955968693,3.50144875,3344.5,3343.5,3.54086]
[1736955968894,3.0,3344.4,3343.7,0.55]
[1736955969096,3.0,3344.4,3343.4,2.99094]
[1736955969097,5.99009,3344.4,3343.4,2.99094]
[1736955969364,3.50144875,3344.5,3343.5,0.55]
[1736955969530,6.49143875,3344.5,3343.5,0.55]
[1736955970539,3.0,3344.4,3343.5,0.55]
[1736955970697,3.0,3344.4,3343.7,0.55]
[1736955971322,5.99008,3344.4,3343.7,0.55]
[1736955973348,3.0,3344.4,3343.7,0.55]
[1736955973642,3.0,3344.4,3343.9,0.55]
[1736955974021,3.0,3344.5,3344.1,0.55]
[1736955974637,3.50144875,3344.4,3344.1,0.55]
[1736955974817,6.84167363,3344.4,3344.1,0.55]
[1736955975386,6.84167363,3344.4,3343.8,0.7851]
[1736955975545,6.84167363,3344.4,3343.9,0.223]
[1736955975748,3.85159363,3344.4,3344.0,0.55]
[1736955976050,3.0,3344.5,3344.0,0.55]
[1736955977552,2.99007,3344.4,3344.0,0.55]
[1736955977747,3.0,3344.5,3344.0,0.55]
[1736955978152,3.80825,3345.0,3344.0,0.55]
[1736955978351,0.73096988,3345.0,3344.0,0.55]
[1736955978553,2.98967,3344.9,3344.0,0.55]
[1736955978953,3.0,3344.8,3343.9,0.773]
[1736955979163,2.98993,3344.6,3344.0,0.55]
[1736955979366,2.99007,3344.4,3343.9,0.223]
[1736955979660,2.98993,3344.6,3343.9,0.223]
[1736955979860,3.93803888,3344.6,3344.0,0.55]
[1736955980222,2.98998,3344.5,3344.0,0.223]
[1736955980678,2.99008,3344.4,3344.0,0.223]
[1736955981177,0.94810888,3344.6,3344.0,0.223]
[1736955981474,2.98999,3344.5,3344.0,0.223]
[1736955981642,0.69380989,3344.4,3344.0,0.223]
[1736955981838,3.0,3344.3,3344.0,0.223]
[1736955982247,2.99025,3344.2,3343.2,0.7851]
[1736955982550,2.99025,3344.2,3343.1,1.0]
[1736955982551,3.0,3343.3,3343.1,1.0]
[1736955982752,5.99114,3343.2,3343.1,1.0]
[1736955982961,6.74936916,3343.2,3343.1,1.0]
[1736955984573,3.7877,3343.1,3342.1,3.69312842]
[1736955984734,5.99204,3342.2,3342.1,3.69312842]
[1736955989484,6.83444465,3342.2,3342.1,8.42e-06]
[1736955989783,6.78036,3341.5,3341.4,0.01251784]
[1736955989988,10.33651292,3341.5,3341.4,0.01251784]
[1736955990797,6.55615292,3341.5,3341.4,0.01251784]
[1736955991107,0.05470417,3341.5,3341.4,0.56251784]
[1736955991427,0.05470417,3341.5,3341.4,0.59118788]
[1736955991784,3.50144875,3341.5,3341.4,0.04118788]
[1736955991989,6.84425363,3341.5,3341.4,0.04118788]
[1736955992191,9.84425363,3341.5,3341.4,0.01251784]
[1736955992721,3.0,3341.5,3341.4,0.01251784]
[1736955993025,6.49385875,3341.8,3341.4,0.01251784]
[1736955993612,0.93841061,3342.4,3341.4,0.01251784]
[1736955993613,9.49365875,3342.1,3341.4,0.01251784]
[1736955993800,2.99222,3342.0,3341.6,0.55]
[1736955994013,3.0,3341.9,3341.6,0.223]
[1736955994225,5.99248,3341.7,3341.6,0.223]
[1736955994551,5.99248,3341.7,3340.8,0.95200615]
[1736955994552,5.99266,3341.5,3340.8,0.95200615]
[1736955994733,2.9932,3340.9,3340.8,0.95200615]
[1736955995339,3.0,3341.0,3340.8,0.95200615]
[1736955995545,2.99304,3341.1,3340.8,0.95200615]
[1736955996270,6.49448875,3341.1,3340.8,0.95200615]
[1736955996776,0.05470417,3341.4,3340.9,0.55]
[1736955996777,6.54899292,3341.4,3340.9,0.55]
[1736955997111,2.99284,3341.3,3340.9,1.329]
[1736955997993,5.99318,3341.0,3340.8,0.95200615]
[1736955998510,0.65489929,3341.3,3340.9,0.55]
[1736955998709,0.05470417,3341.4,3340.9,0.55]
[1736955999659,0.05470417,3341.4,3341.1,3.543]
[1736955999807,0.05470417,3341.4,3341.3,0.55]
[1736956000007,3.50144875,3342.0,3341.4,2.99274]
[1736956000211,3.50144875,3342.0,3341.3,0.55]
[1736956000435,3.50144875,3341.7,3341.3,0.55]
[1736956000643,3.50144875,3341.7,3341.0,0.779]
[1736956000644,3.50144875,3341.7,3341.1,0.55]
[1736956000851,3.0,3341.9,3341.1,0.55]
[1736956001225,3.50144875,3341.4,3341.2,0.04356453]
[1736956001450,0.35014488,3341.3,3341.2,0.04356453]
[1736956001650,3.35014488,3341.3,3340.8,1.17500615]
[1736956002153,3.35014488,3341.3,3340.9,0.04364639]
[1736956002716,3.35014488,3341.3,3340.8,0.95200615]
[1736956003012,3.35014488,3341.3,3341.0,0.0436191]
[1736956003328,3.0,3341.3,3341.1,0.04359182]
[1736956003512,3.50144875,3341.7,3340.9,0.55]
[1736956003712,3.0,3341.8,3340.8,3.94529615]
[1736956003713,0.05470514,3341.9,3341.3,0.55]
[1736956003914,0.05470514,3341.9,3341.4,0.779]
[1736956004165,0.05470514,3341.9,3341.5,0.55]
[1736956004350,4.32384875,3342.9,3341.9,0.779]
[1736956004549,3.50144875,3342.9,3342.0,0.773]
[1736956004710,3.50144875,3343.3,3342.2,0.55]
[1736956004915,3.0,3343.2,3342.4,0.55]
[1736956005212,3.0,3343.2,3342.2,0.55]
[1736956005412,5.99114,3343.2,3342.2,0.55]
[1736956005636,3.0,3343.2,3342.2,1.004409]
[1736956005936,3.50144875,3343.3,3342.3,0.55]
[1736956006251,3.50144875,3343.6,3342.7,0.55]
[1736956006446,2.99095,3343.5,3342.3,3.77087]
[1736956006762,3.50144875,3343.2,3342.3,3.77087]
[1736956007075,3.0,3343.1,3342.6,0.55]
[1736956007242,3.0,3343.1,3342.4,0.55]
[1736956009556,3.55615389,3344.1,3343.0,0.55]
[1736956009753,0.05470514,3344.1,3343.5,0.8294]
[1736956010050,0.05470514,3344.1,3343.6,0.773]
[1736956010675,0.05470514,3344.1,3344.0,0.55]
[1736956010970,3.50144875,3344.1,3343.6,0.223]
[1736956011315,3.75024875,3344.4,3343.6,0.223]
[1736956011453,3.0,3344.3,3343.7,0.55]
[1736956011952,3.0,3343.9,3343.0,0.8294]
[1736956012255,5.99052,3343.9,3343.0,0.8294]
[1736956012452,3.0,3343.4,3343.1,0.223]
[1736956012768,3.0,3343.2,3342.4,0.223]
[1736956013010,3.0,3343.0,3342.5,0.223]
[1736956013162,3.0,3343.2,3342.5,0.223]
[1736956013703,5.99116,3343.2,3342.6,0.55]
[1736956014203,3.0,3343.2,3342.6,0.55]
[1736956014413,3.0,3343.0,3342.6,0.55]
[1736956014904,3.0,3343.0,3342.5,0.223]
[1736956015099,6.49278875,3343.0,3342.3,0.223]
[1736956015408,3.50144875,3343.0,3342.4,0.55]
[1736956017599,3.50144875,3343.0,3342.6,0.55]
[1736956017765,4.21953222,3343.0,3342.6,0.55]
[1736956018191,0.71808347,3343.0,3342.6,0.55]
[1736956018392,3.0,3343.3,3342.6,0.55]
[1736956020163,3.0,3343.3,3342.6,3.54168]
[1736956020578,3.0,3343.3,3342.6,0.55]
[1736956020942,3.0,3343.0,3342.6,0.55]
[1736956021241,3.0,3342.9,3342.2,0.8294]
[1736956021446,2.99159,3342.7,3342.3,0.223]
[1736956021647,0.95014488,3342.8,3342.3,0.223]
[1736956021935,3.0,3342.5,3341.8,0.8294]
[1736956022100,3.0,3342.3,3341.9,0.223]
[1736956022443,3.50144875,3342.3,3341.9,0.223]
[1736956022619,0.35014488,3342.2,3341.5,0.8294]
[1736956022823,3.0,3341.9,3340.8,2.39105817]
[1736956023049,3.0,3341.6,3340.9,0.223]
[1736956023335,5.99261,3341.6,3340.8,36.78140615]
[1736956023483,0.7986,3342.1,3341.1,2.99301]
[1736956023685,0.05470514,3342.2,3341.3,0.8294]
[1736956023947,0.05470514,3342.2,3341.7,0.55]
[1736956024126,0.05470514,3342.2,3341.9,0.55]
[1736956024375,2.99141,3343.0,3341.9,0.55]
[1736956024637,3.0,3343.0,3342.1,0.55]
[1736956024835,3.0,3342.7,3342.1,0.55]
[1736956025145,3.0,3342.7,3342.1,0.773]
[1736956025496,6.49295875,3342.8,3342.1,0.223]
[1736956025700,3.0,3342.2,3342.1,0.223]
[1736956025906,2.99204,3342.2,3342.1,0.223]
[1736956026251,4.31989587,3342.2,3342.1,0.223]
[1736956026460,4.9600641,3342.8,3342.1,0.223]
[1736956026617,0.05470514,3342.8,3342.1,1.0504]
[1736956026951,3.05470514,3342.8,3342.2,0.55]
[1736956027150,3.50144875,3342.5,3342.1,0.223]
[1736956027308,3.0,3342.7,3342.1,0.223]
[1736956027656,0.71380463,3342.6,3342.1,0.223]
[1736956028276,3.05470514,3342.8,3342.1,0.223]
[1736956028479,3.50144875,3342.5,3342.1,0.223]
[1736956028636,3.7933,3342.4,3342.1,0.223]
[1736956028968,2.99204,3342.2,3342.1,0.223]
[1736956029519,3.0,3342.4,3342.1,0.223]
[1736956029772,0.05470514,3342.5,3342.1,0.223]
[1736956030569,0.05470514,3342.5,3342.2,0.55]
[1736956030771,0.05470514,3342.5,3342.2,0.76504]
[1736956030929,3.50144875,3342.9,3342.2,0.76504]
[1736956031126,3.0,3342.8,3342.2,0.76504]
[1736956031667,0.7933,3343.6,3342.5,0.55]
[1736956031967,3.78412,3343.6,3342.5,38.54174]
[1736956032172,3.0,3343.5,3342.6,0.55]
[1736956032336,2.99088,3343.5,3342.6,0.55]
[1736956032538,2.99088,3343.5,3342.5,0.55]
[1736956033066,6.49217875,3343.7,3343.0,0.55]
[1736956033372,2.99088,3343.5,3343.0,0.55]
[1736956033722,3.0,3343.6,3343.0,0.55]
[1736956033942,0.64923288,3343.5,3343.0,0.55]
[1736956034270,4.10887612,3344.5,3343.5,2.99079]
[1736956034571,2.99095,3343.5,3343.3,0.8274]
[1736956034774,3.0,3343.6,3343.1,0.222]
[1736956034982,3.0,3343.6,3342.6,0.8274]
[1736956034983,3.0,3342.9,3342.6,0.8274]
[1736956035133,2.99133,3343.0,3342.6,0.222]
[1736956035322,3.0,3343.2,3342.6,0.222]
[1736956035549,2.99159,3342.7,3342.6,0.222]
[1736956035774,2.99159,3342.7,3342.0,0.8274]
[1736956035949,5.99204,3342.2,3342.1,0.222]
[1736956036174,3.0,3342.1,3341.8,0.222]
[1736956037312,3.50144875,3342.5,3341.8,0.222]
[1736956037598,2.99203,3342.3,3341.8,0.222]
[1736956037797,3.0,3342.4,3341.8,0.222]
[1736956038006,3.0,3341.9,3341.8,0.222]
[1736956038308,2.9925,3341.7,3341.6,0.222]
[1736956038671,5.9925,3341.7,3341.6,0.222]
[1736956039398,6.59175,3341.7,3341.6,0.222]
[1736956039576,3.0,3341.7,3341.6,0.222]
[1736956039771,3.50144875,3341.8,3341.0,0.8274]
[1736956039995,3.0,3341.4,3341.1,0.222]
[1736956040196,5.99276,3341.4,3341.1,0.222]
[1736956040518,2.99285,3341.3,3341.1,0.222]
[1736956040662,3.0,3341.4,3341.1,0.222]
[1736956041012,2.99291,3341.3,3341.1,0.222]
[1736956041166,3.0,3341.4,3341.1,0.222]
[1736956041608,5.99251,3341.7,3341.1,0.222]
[1736956042719,3.0,3341.9,3341.1,0.222]
[1736956042897,2.99274,3341.5,3341.1,0.222]
[1736956043415,3.0,3341.5,3341.1,0.222]
[1736956043578,5.99271,3341.5,3341.0,0.222]
[1736956043906,3.0,3341.4,3340.9,0.222]
[1736956044113,3.0,3341.5,3340.9,0.222]
[1736956044415,2.99311,3341.0,3340.9,0.222]
[1736956044766,2.9932,3340.9,3340.8,0.95200615]
[1736956044963,9.49464875,3340.9,3340.8,0.95200615]
[1736956045772,10.28794875,3340.9,3340.8,0.95200615]
[1736956045973,10.28794875,3340.9,3340.8,6.15e-06]
[1736956046291,5.99383,3340.2,3340.1,2.0]
[1736956046495,9.49527875,3340.2,3340.1,2.0]
[1736956047409,10.28857875,3340.2,3340.1,2.0]
[1736956047566,10.34328389,3340.2,3340.1,2.0]
[1736956048404,10.34328389,3340.2,3339.8,0.97871104]
[1736956048405,5.99392,3340.1,3340.0,5.50898]
[1736956048602,7.39755519,3340.1,3340.0,5.50898]
[1736956049793,0.05470514,3340.1,3340.0,5.50898]
[1736956049966,0.05470514,3340.1,3340.0,6.28098]
[1736956050305,3.50144875,3341.1,3340.3,0.55]
[1736956050684,3.50144875,3341.4,3340.4,0.02749144]
[1736956051214,3.50144875,3341.4,3340.5,35.0]
[1736956051419,3.50144875,3340.8,3340.5,35.0]
[1736956053630,0.05470514,3341.3,3340.4,3.54357]
[1736956053800,0.05470514,3341.3,3340.6,3.54344]
[1736956054134,0.05470514,3341.3,3340.7,0.02877216]
[1736956054472,0.05470514,3341.3,3341.2,3.54293]
[1736956054798,7.28663875,3342.4,3341.4,0.55]
[1736956054981,5.9884092,3342.3,3341.4,0.55]
[1736956055165,2.99202,3342.3,3341.6,0.55]
[1736956055623,5.02341263,3342.4,3341.3,0.8274]
[1736956055769,3.50144875,3341.7,3341.3,0.8274]
[1736956055971,3.50144875,3341.7,3341.2,0.222]
[1736956056197,3.85159363,3341.7,3341.1,0.222]
[1736956056619,6.49425875,3341.4,3340.4,0.7747]
[1736956056916,0.35014488,3341.7,3340.9,0.55]
[1736956056917,3.50144875,3341.7,3340.9,0.55]
[1736956057384,2.99233,3341.9,3341.0,1.3247]
[1736956057711,3.0,3341.8,3341.0,1.3247]
[1736956057920,3.0,3341.4,3341.0,1.3247]
[1736956058311,2.99279,3341.4,3340.6,1.3247]
[1736956058516,3.0,3341.2,3340.6,0.7747]
[1736956058834,2.99326,3340.9,3340.7,0.222]
[1736956058977,3.64276088,3340.8,3340.7,0.222]
[1736956059180,3.64947088,3340.8,3340.7,0.222]
[1736956060684,3.0,3340.8,3340.7,0.772]
[1736956061212,3.0,3340.8,3340.7,0.222]
[1736956062306,3.0,3340.7,3340.2,0.55]
[1736956062518,3.0,3340.9,3340.3,0.222]
[1736956062724,2.99344,3340.7,3340.3,0.222]
[1736956062906,5.9932,3340.9,3340.4,0.55]
[1736956064226,2.99331,3340.8,3340.4,0.55]
[1736956064384,3.0,3340.5,3340.2,0.222]
[1736956064780,3.0,3340.8,3340.2,0.222]
[1736956064975,2.9933,3340.8,3340.2,0.222]
[1736956066003,3.50144875,3341.4,3340.2,0.7747]
[1736956066208,3.50144875,3341.0,3340.3,0.772]
[1736956066408,2.99356,3340.6,3340.3,0.772]
[1736956066612,3.0,3340.5,3340.3,0.222]
[1736956066810,6.49482875,3340.7,3340.3,0.222]
[1736956067117,7.27832875,3340.7,3340.1,0.55]